[Event "Titled Tuesday Blitz June 14 Late 2022"]
[White "Nozdrachev, Leonid"]
[Black "Hjartarson, Johann"]
[WhiteFideId "24113433"]
[BlackFideId "2300044"]
[WhiteElo "2129"]
[BlackElo "2458"]
[Result "1/2-1/2"]
[Round "04"]
[TimeControl "180+1"]
[Date "2022.06.15"]
[WhiteClock "0:00:05"]
[BlackClock "0:00:12"]

1. e4 {[%clk 0:03:00]}  c5 {[%clk 0:02:59]} 2. c3 {[%clk 0:02:59]}  d5 {[%clk 0:02:59]} 3. exd5 {[%clk 0:02:59]}  Qxd5 {[%clk 0:02:59]} 4. d4 {[%clk 0:02:58]}  Nf6 {[%clk 0:02:59]} 5. Nf3 {[%clk 0:02:55]}  e6 {[%clk 0:02:59]} 6. Bd3 {[%clk 0:02:54]}  Be7 {[%clk 0:02:58]} 7. O-O {[%clk 0:02:54]}  O-O {[%clk 0:02:58]} 8. Be3 {[%clk 0:02:44]}  cxd4 {[%clk 0:02:56]} 9. cxd4 {[%clk 0:02:45]}  Nc6 {[%clk 0:02:55]} 10. Nc3 {[%clk 0:02:45]}  Qd6 {[%clk 0:02:55]} 11. Rc1 {[%clk 0:02:42]}  Bd7 {[%clk 0:02:54]} 12. Bb1 {[%clk 0:02:40]}  Rad8 {[%clk 0:02:48]} 13. a3 {[%clk 0:02:38]}  a6 {[%clk 0:02:47]} 14. Qd3 {[%clk 0:02:37]}  g6 {[%clk 0:02:46]} 15. Rfd1 {[%clk 0:02:34]}  Rfe8 {[%clk 0:02:45]} 16. h3 {[%clk 0:02:33]}  Qb8 {[%clk 0:02:36]} 17. Qe2 {[%clk 0:02:21]}  b5 {[%clk 0:02:35]} 18. Ne4 {[%clk 0:02:17]}  Nxe4 {[%clk 0:02:29]} 19. Bxe4 {[%clk 0:02:18]}  Rc8 {[%clk 0:02:28]} 20. d5 {[%clk 0:02:15]}  Ne5 {[%clk 0:02:24]} 21. Nxe5 {[%clk 0:02:07]}  Qxe5 {[%clk 0:02:21]} 22. Bd4 {[%clk 0:02:06]}  Qg5 {[%clk 0:02:16]} 23. Be3 {[%clk 0:02:02]}  Qh4 {[%clk 0:02:14]} 24. dxe6 {[%clk 0:01:50]}  Rxc1 {[%clk 0:02:03]} 25. Bxc1 {[%clk 0:01:14]}  Bxe6 {[%clk 0:02:00]} 26. Bb7 {[%clk 0:01:13]}  Bc4 {[%clk 0:01:44]} 27. Qf3 {[%clk 0:01:06]}  a5 {[%clk 0:01:38]} 28. Bc6 {[%clk 0:00:51]}  Rc8 {[%clk 0:01:30]} 29. b3 {[%clk 0:00:48]}  Bxb3 {[%clk 0:01:12]} 30. Qxb3 {[%clk 0:00:48]}  Rxc6 {[%clk 0:01:11]} 31. Qxb5 {[%clk 0:00:48]}  Rc2 {[%clk 0:01:09]} 32. Qe8+ {[%clk 0:00:43]}  Kg7 {[%clk 0:01:03]} 33. Be3 {[%clk 0:00:43]}  Rc4 {[%clk 0:00:47]} 34. Bd4+ {[%clk 0:00:37]}  Rxd4 {[%clk 0:00:47]} 35. Rxd4 {[%clk 0:00:36]}  Qxd4 {[%clk 0:00:46]} 36. Qxe7 {[%clk 0:00:35]}  a4 {[%clk 0:00:46]} 37. g3 {[%clk 0:00:31]}  h5 {[%clk 0:00:45]} 38. h4 {[%clk 0:00:30]}  Qc3 {[%clk 0:00:42]} 39. Qd6 {[%clk 0:00:27]}  Qb3 {[%clk 0:00:39]} 40. Qe5+ {[%clk 0:00:25]}  Kf8 {[%clk 0:00:39]} 41. Qd6+ {[%clk 0:00:23]}  Ke8 {[%clk 0:00:38]} 42. Kg2 {[%clk 0:00:21]}  Qc4 {[%clk 0:00:36]} 43. Kg1 {[%clk 0:00:18]}  Qe4 {[%clk 0:00:35]} 44. Kf1 {[%clk 0:00:15]}  Qc4+ {[%clk 0:00:29]} 45. Ke1 {[%clk 0:00:13]}  Qc1+ {[%clk 0:00:23]} 46. Ke2 {[%clk 0:00:13]}  Qc2+ {[%clk 0:00:23]} 47. Ke3 {[%clk 0:00:13]}  Qc3+ {[%clk 0:00:22]} 48. Ke4 {[%clk 0:00:13]}  Qc4+ {[%clk 0:00:21]} 49. Kf3 {[%clk 0:00:12]}  Qc3+ {[%clk 0:00:20]} 50. Kf4 {[%clk 0:00:12]}  Qc4+ {[%clk 0:00:19]} 51. Kg5 {[%clk 0:00:11]}  Qc3 {[%clk 0:00:17]} 52. Kh6 {[%clk 0:00:10]}  Qh8+ {[%clk 0:00:15]} 53. Kg5 {[%clk 0:00:10]}  Qc3 {[%clk 0:00:15]} 54. Qb8+ {[%clk 0:00:06]}  Ke7 {[%clk 0:00:15]} 55. Qa7+ {[%clk 0:00:05]}  Ke6 {[%clk 0:00:15]} 56. Qa6+ {[%clk 0:00:05]}  Ke7 {[%clk 0:00:13]} 57. Qa7+ {[%clk 0:00:05]}  Ke6 {[%clk 0:00:13]} 58. Qa6+ {[%clk 0:00:05]}  Ke7 {[%clk 0:00:12]} 59. Qa7+ {[%clk 0:00:05]} 1/2-1/2


[Site "https://www.chess.com"]

[Event "Titled Tuesday Blitz June 14 Late 2022"]
[White "Omariev, Maksim"]
[Black "Prydun, Andriy"]
[WhiteFideId "4193423"]
[BlackFideId "14145898"]
[WhiteElo "2493"]
[BlackElo "2063"]
[Result "0-1"]
[Round "04"]
[TimeControl "180+1"]
[Date "2022.06.15"]
[WhiteClock "0:00:09"]
[BlackClock "0:00:23"]

1. b3 {[%clk 0:03:00]}  b6 {[%clk 0:02:05]} 2. Bb2 {[%clk 0:03:01]}  Bb7 {[%clk 0:02:05]} 3. h3 {[%clk 0:03:02]}  Nf6 {[%clk 0:02:06]} 4. g4 {[%clk 0:03:03]}  h6 {[%clk 0:02:06]} 5. Nf3 {[%clk 0:03:02]}  g5 {[%clk 0:02:06]} 6. Bg2 {[%clk 0:02:51]}  Bg7 {[%clk 0:02:06]} 7. c4 {[%clk 0:02:51]}  d6 {[%clk 0:02:03]} 8. d4 {[%clk 0:02:48]}  Nbd7 {[%clk 0:02:03]} 9. Nc3 {[%clk 0:02:47]}  e6 {[%clk 0:02:03]} 10. Qc2 {[%clk 0:02:46]}  Qe7 {[%clk 0:02:02]} 11. O-O-O {[%clk 0:02:46]}  O-O-O {[%clk 0:02:02]} 12. Ne1 {[%clk 0:02:37]}  h5 {[%clk 0:02:00]} 13. Bxb7+ {[%clk 0:02:33]}  Kxb7 {[%clk 0:02:01]} 14. Rg1 {[%clk 0:02:20]}  hxg4 {[%clk 0:02:00]} 15. hxg4 {[%clk 0:02:21]}  Rh2 {[%clk 0:02:00]} 16. e3 {[%clk 0:02:02]}  d5 {[%clk 0:01:59]} 17. Nf3 {[%clk 0:02:01]}  Rhh8 {[%clk 0:01:50]} 18. Nxg5 {[%clk 0:02:00]}  Rdg8 {[%clk 0:01:49]} 19. f4 {[%clk 0:01:59]}  Bh6 {[%clk 0:01:44]} 20. Nxf7 {[%clk 0:01:16]}  Qxf7 {[%clk 0:01:14]} 21. g5 {[%clk 0:01:16]}  Bxg5 {[%clk 0:01:10]} 22. fxg5 {[%clk 0:01:17]}  Ne8 {[%clk 0:00:56]} 23. cxd5 {[%clk 0:01:16]}  exd5 {[%clk 0:00:40]} 24. e4 {[%clk 0:00:52]}  Nd6 {[%clk 0:00:34]} 25. exd5 {[%clk 0:00:44]}  Qf4+ {[%clk 0:00:32]} 26. Qd2 {[%clk 0:00:38]}  Qf5 {[%clk 0:00:26]} 27. Rdf1 {[%clk 0:00:35]}  Qg6 {[%clk 0:00:25]} 28. Qc2 {[%clk 0:00:28]}  Rh5 {[%clk 0:00:22]} 29. Ba3 {[%clk 0:00:05]}  Rxg5 {[%clk 0:00:20]} 30. Qxg6 {[%clk 0:00:04]}  R8xg6 {[%clk 0:00:20]} 31. Rxg5 {[%clk 0:00:04]}  Rxg5 {[%clk 0:00:19]} 32. Bxd6 {[%clk 0:00:05]}  cxd6 {[%clk 0:00:19]} 33. Rf7 {[%clk 0:00:05]}  Kc8 {[%clk 0:00:18]} 34. Kd2 {[%clk 0:00:02]}  a6 {[%clk 0:00:16]} 35. Kd3 {[%clk 0:00:02]}  Kc7 {[%clk 0:00:16]} 36. Ke4 {[%clk 0:00:02]}  Rg2 {[%clk 0:00:15]} 37. Kf4 {[%clk 0:00:01]}  Rf2+ {[%clk 0:00:14]} 38. Kg5 {[%clk 0:00:01]}  Rxf7 {[%clk 0:00:12]} 39. Ne4 {[%clk 0:00:02]}  Re7 {[%clk 0:00:11]} 40. Kf4 {[%clk 0:00:02]}  Rxe4+ {[%clk 0:00:09]} 41. Kxe4 {[%clk 0:00:01]}  Nf6+ {[%clk 0:00:10]} 42. Kd3 {[%clk 0:00:01]}  Nxd5 {[%clk 0:00:11]} 43. Kc4 {[%clk 0:00:02]}  Ne7 {[%clk 0:00:11]} 44. a4 {[%clk 0:00:03]}  d5+ {[%clk 0:00:11]} 45. Kb4 {[%clk 0:00:03]}  a5+ {[%clk 0:00:12]} 46. Kb5 {[%clk 0:00:03]}  Kb7 {[%clk 0:00:12]} 47. b4 {[%clk 0:00:03]}  axb4 {[%clk 0:00:13]} 48. Kxb4 {[%clk 0:00:04]}  Ka6 {[%clk 0:00:14]} 49. Kb3 {[%clk 0:00:04]}  Ka5 {[%clk 0:00:15]} 50. Ka3 {[%clk 0:00:04]}  Nc6 {[%clk 0:00:15]} 51. Kb3 {[%clk 0:00:05]}  Nb8 {[%clk 0:00:16]} 52. Ka3 {[%clk 0:00:04]}  Nd7 {[%clk 0:00:17]} 53. Kb3 {[%clk 0:00:05]}  Nf6 {[%clk 0:00:18]} 54. Ka3 {[%clk 0:00:05]}  Ne4 {[%clk 0:00:19]} 55. Kb3 {[%clk 0:00:06]}  Nf2 {[%clk 0:00:19]} 56. Ka3 {[%clk 0:00:06]}  Nd3 {[%clk 0:00:19]} 57. Kb3 {[%clk 0:00:07]}  Nf4 {[%clk 0:00:20]} 58. Ka3 {[%clk 0:00:07]}  Ne2 {[%clk 0:00:20]} 59. Kb3 {[%clk 0:00:08]}  Nxd4+ {[%clk 0:00:21]} 60. Ka3 {[%clk 0:00:08]}  Nc6 {[%clk 0:00:22]} 61. Kb3 {[%clk 0:00:09]}  d4 {[%clk 0:00:22]} 62. Kc4 {[%clk 0:00:09]}  Kxa4 {[%clk 0:00:23]} 0-1


[Site "https://www.chess.com"]

[Event "Titled Tuesday Blitz June 14 Late 2022"]
[White "Perera Alfonso, Rene Humberto"]
[Black "Mekhitarian, Krikor Sevag"]
[WhiteFideId "3514722"]
[BlackFideId "2107660"]
[WhiteElo "2313"]
[BlackElo "2611"]
[Result "1/2-1/2"]
[Round "04"]
[TimeControl "180+1"]
[Date "2022.06.15"]
[WhiteClock "0:00:13"]
[BlackClock "0:00:16"]

1. e4 {[%clk 0:02:59]}  e5 {[%clk 0:02:59]} 2. Nf3 {[%clk 0:02:58]}  Nf6 {[%clk 0:02:58]} 3. Nxe5 {[%clk 0:02:58]}  d6 {[%clk 0:02:58]} 4. Nf3 {[%clk 0:02:58]}  Nxe4 {[%clk 0:02:58]} 5. d4 {[%clk 0:02:59]}  d5 {[%clk 0:02:58]} 6. Bd3 {[%clk 0:02:59]}  Bd6 {[%clk 0:02:59]} 7. O-O {[%clk 0:02:58]}  O-O {[%clk 0:02:59]} 8. c4 {[%clk 0:02:58]}  c6 {[%clk 0:02:59]} 9. Nc3 {[%clk 0:02:58]}  Nxc3 {[%clk 0:03:00]} 10. bxc3 {[%clk 0:02:59]}  dxc4 {[%clk 0:03:00]} 11. Bxc4 {[%clk 0:02:59]}  Bf5 {[%clk 0:03:01]} 12. Re1 {[%clk 0:02:56]}  Nd7 {[%clk 0:02:59]} 13. Bg5 {[%clk 0:02:56]}  Qa5 {[%clk 0:02:56]} 14. Qd2 {[%clk 0:02:39]}  Nb6 {[%clk 0:02:40]} 15. Bb3 {[%clk 0:02:38]}  Rae8 {[%clk 0:02:39]} 16. h3 {[%clk 0:02:30]}  Nd5 {[%clk 0:02:18]} 17. Rxe8 {[%clk 0:01:48]}  Rxe8 {[%clk 0:02:16]} 18. Re1 {[%clk 0:01:49]}  Rxe1+ {[%clk 0:01:33]} 19. Qxe1 {[%clk 0:01:49]}  Qxc3 {[%clk 0:01:33]} 20. Qe8+ {[%clk 0:01:42]}  Bf8 {[%clk 0:01:32]} 21. Be7 {[%clk 0:01:38]}  Qc1+ {[%clk 0:01:02]} 22. Kh2 {[%clk 0:01:36]}  h6 {[%clk 0:00:55]} 23. Qxf8+ {[%clk 0:01:22]}  Kh7 {[%clk 0:00:54]} 24. Bd6 {[%clk 0:01:11]}  Be6 {[%clk 0:00:53]} 25. Qd8 {[%clk 0:00:51]}  b5 {[%clk 0:00:47]} 26. Qh4 {[%clk 0:00:49]}  a5 {[%clk 0:00:47]} 27. Be5 {[%clk 0:00:42]}  a4 {[%clk 0:00:34]} 28. Bxd5 {[%clk 0:00:41]}  Bxd5 {[%clk 0:00:35]} 29. Qg4 {[%clk 0:00:36]}  f6 {[%clk 0:00:35]} 30. Qf5+ {[%clk 0:00:34]}  Kh8 {[%clk 0:00:35]} 31. Nh4 {[%clk 0:00:22]}  fxe5 {[%clk 0:00:19]} 32. Ng6+ {[%clk 0:00:22]}  Kg8 {[%clk 0:00:17]} 33. Ne7+ {[%clk 0:00:20]}  Kh8 {[%clk 0:00:17]} 34. Qc8+ {[%clk 0:00:15]}  Kh7 {[%clk 0:00:17]} 35. Qf5+ {[%clk 0:00:16]}  Kh8 {[%clk 0:00:17]} 36. Ng6+ {[%clk 0:00:15]}  Kg8 {[%clk 0:00:16]} 37. Ne7+ {[%clk 0:00:13]}  Kh8 {[%clk 0:00:16]} 1/2-1/2


[Site "https://www.chess.com"]

[Event "Titled Tuesday Blitz June 14 Late 2022"]
[White "Seo, Jung Min"]
[Black "Martinez Alcantara, Jose Eduardo"]
[WhiteFideId "1734687"]
[BlackFideId "3805662"]
[WhiteElo "2414"]
[BlackElo "2703"]
[Result "0-1"]
[Round "04"]
[TimeControl "180+1"]
[Date "2022.06.14"]
[WhiteClock "0:00:06"]
[BlackClock "0:00:14"]

1. d4 {[%clk 0:03:00]}  Nf6 {[%clk 0:03:00]} 2. c4 {[%clk 0:03:01]}  e6 {[%clk 0:03:00]} 3. Nc3 {[%clk 0:03:00]}  Bb4 {[%clk 0:03:01]} 4. Qc2 {[%clk 0:02:59]}  d6 {[%clk 0:03:00]} 5. a3 {[%clk 0:02:58]}  Bxc3+ {[%clk 0:03:01]} 6. Qxc3 {[%clk 0:02:59]}  Nbd7 {[%clk 0:03:01]} 7. g3 {[%clk 0:02:57]}  O-O {[%clk 0:02:59]} 8. Bg2 {[%clk 0:02:57]}  e5 {[%clk 0:02:59]} 9. Nf3 {[%clk 0:02:56]}  Re8 {[%clk 0:02:59]} 10. O-O {[%clk 0:02:56]}  e4 {[%clk 0:02:59]} 11. Ng5 {[%clk 0:02:54]}  d5 {[%clk 0:02:55]} 12. cxd5 {[%clk 0:02:49]}  Nb6 {[%clk 0:02:53]} 13. Nh3 {[%clk 0:02:40]}  Nbxd5 {[%clk 0:02:53]} 14. Qc2 {[%clk 0:02:40]}  h6 {[%clk 0:02:25]} 15. Nf4 {[%clk 0:02:40]}  Nb6 {[%clk 0:02:25]} 16. e3 {[%clk 0:02:32]}  Bf5 {[%clk 0:02:18]} 17. Bd2 {[%clk 0:02:30]}  Qd7 {[%clk 0:02:16]} 18. Rfc1 {[%clk 0:02:28]}  c6 {[%clk 0:02:16]} 19. b4 {[%clk 0:02:26]}  g5 {[%clk 0:02:16]} 20. Ne2 {[%clk 0:02:25]}  Bh3 {[%clk 0:02:11]} 21. Bh1 {[%clk 0:02:25]}  Nbd5 {[%clk 0:02:11]} 22. Nc3 {[%clk 0:02:24]}  Qf5 {[%clk 0:02:04]} 23. Nxd5 {[%clk 0:02:17]}  cxd5 {[%clk 0:02:03]} 24. Be1 {[%clk 0:02:17]}  Rac8 {[%clk 0:01:56]} 25. Qd2 {[%clk 0:02:17]}  Bg4 {[%clk 0:01:53]} 26. Bg2 {[%clk 0:02:11]}  Bh3 {[%clk 0:01:48]} 27. Bh1 {[%clk 0:02:11]}  Bg4 {[%clk 0:01:49]} 28. Bg2 {[%clk 0:02:11]}  Bf3 {[%clk 0:01:46]} 29. Bf1 {[%clk 0:02:11]}  h5 {[%clk 0:01:38]} 30. Rxc8 {[%clk 0:02:10]}  Rxc8 {[%clk 0:01:39]} 31. Rc1 {[%clk 0:02:11]}  Re8 {[%clk 0:00:48]} 32. h3 {[%clk 0:02:06]}  Rc8 {[%clk 0:00:27]} 33. b5 {[%clk 0:01:59]}  b6 {[%clk 0:00:27]} 34. a4 {[%clk 0:01:53]}  Kg7 {[%clk 0:00:26]} 35. Rxc8 {[%clk 0:01:45]}  Qxc8 {[%clk 0:00:27]} 36. Qc3 {[%clk 0:01:45]}  Qxc3 {[%clk 0:00:20]} 37. Bxc3 {[%clk 0:01:45]}  Ne8 {[%clk 0:00:21]} 38. a5 {[%clk 0:01:43]}  f6 {[%clk 0:00:18]} 39. Bb4 {[%clk 0:01:33]}  Kf7 {[%clk 0:00:18]} 40. axb6 {[%clk 0:01:01]}  axb6 {[%clk 0:00:18]} 41. Bc5 {[%clk 0:01:01]}  Ke6 {[%clk 0:00:12]} 42. Bxb6 {[%clk 0:01:01]}  Kd7 {[%clk 0:00:13]} 43. Bc5 {[%clk 0:00:58]}  Nd6 {[%clk 0:00:13]} 44. b6 {[%clk 0:00:54]}  Nc4 {[%clk 0:00:13]} 45. b7 {[%clk 0:00:52]}  Kc7 {[%clk 0:00:13]} 46. Be7 {[%clk 0:00:53]}  Kxb7 {[%clk 0:00:12]} 47. Bxf6 {[%clk 0:00:53]}  g4 {[%clk 0:00:09]} 48. h4 {[%clk 0:00:47]}  Kc6 {[%clk 0:00:08]} 49. Bg5 {[%clk 0:00:39]}  Bd1 {[%clk 0:00:08]} 50. Bf6 {[%clk 0:00:38]}  Kb6 {[%clk 0:00:09]} 51. Be5 {[%clk 0:00:37]}  Nd2 {[%clk 0:00:07]} 52. Bg2 {[%clk 0:00:34]}  Be2 {[%clk 0:00:06]} 53. Bf4 {[%clk 0:00:31]}  Kb5 {[%clk 0:00:06]} 54. Bd6 {[%clk 0:00:31]}  Kc4 {[%clk 0:00:07]} 55. Bc7 {[%clk 0:00:31]}  Kb4 {[%clk 0:00:06]} 56. Bd8 {[%clk 0:00:30]}  Bb5 {[%clk 0:00:04]} 57. Bc7 {[%clk 0:00:30]}  Bc4 {[%clk 0:00:04]} 58. Bd8 {[%clk 0:00:29]}  Bd3 {[%clk 0:00:05]} 59. Bc7 {[%clk 0:00:30]}  Ka4 {[%clk 0:00:06]} 60. Bd8 {[%clk 0:00:29]}  Nc4 {[%clk 0:00:06]} 61. Bc7 {[%clk 0:00:29]}  Kb3 {[%clk 0:00:07]} 62. Bd8 {[%clk 0:00:27]}  Kc2 {[%clk 0:00:07]} 63. Bc7 {[%clk 0:00:22]}  Kd1 {[%clk 0:00:08]} 64. Bd8 {[%clk 0:00:22]}  Ke1 {[%clk 0:00:08]} 65. Bc7 {[%clk 0:00:22]}  Be2 {[%clk 0:00:09]} 66. Bd8 {[%clk 0:00:20]}  Kd1 {[%clk 0:00:09]} 67. Bc7 {[%clk 0:00:20]}  Na3 {[%clk 0:00:07]} 68. Ba5 {[%clk 0:00:19]}  Nb5 {[%clk 0:00:08]} 69. Bb4 {[%clk 0:00:19]}  Bd3 {[%clk 0:00:08]} 70. Ba5 {[%clk 0:00:18]}  Kc2 {[%clk 0:00:08]} 71. Bb4 {[%clk 0:00:19]}  Be2 {[%clk 0:00:08]} 72. Ba5 {[%clk 0:00:19]}  Nd6 {[%clk 0:00:09]} 73. Bb4 {[%clk 0:00:18]}  Nc4 {[%clk 0:00:10]} 74. Kh2 {[%clk 0:00:16]}  Nb2 {[%clk 0:00:09]} 75. Kg1 {[%clk 0:00:15]}  Nd3 {[%clk 0:00:10]} 76. Ba5 {[%clk 0:00:15]}  Kd1 {[%clk 0:00:10]} 77. Bc3 {[%clk 0:00:15]}  Nc1 {[%clk 0:00:10]} 78. Bb2 {[%clk 0:00:14]}  Nd3 {[%clk 0:00:09]} 79. Bc3 {[%clk 0:00:15]}  Kc1 {[%clk 0:00:10]} 80. Ba5 {[%clk 0:00:14]}  Kc2 {[%clk 0:00:09]} 81. Kh2 {[%clk 0:00:14]}  Nc1 {[%clk 0:00:10]} 82. Kg1 {[%clk 0:00:14]}  Bc4 {[%clk 0:00:11]} 83. Bb4 {[%clk 0:00:13]}  Kb3 {[%clk 0:00:10]} 84. Bd2 {[%clk 0:00:13]}  Ne2+ {[%clk 0:00:10]} 85. Kh2 {[%clk 0:00:13]}  Kc2 {[%clk 0:00:11]} 86. Ba5 {[%clk 0:00:13]}  Kd1 {[%clk 0:00:11]} 87. Bf1 {[%clk 0:00:12]}  Nxd4 {[%clk 0:00:05]} 88. exd4 {[%clk 0:00:09]}  Bxf1 {[%clk 0:00:05]} 89. Kg1 {[%clk 0:00:09]}  Bc4 {[%clk 0:00:05]} 90. Bc7 {[%clk 0:00:09]}  Ke2 {[%clk 0:00:06]} 91. Bf4 {[%clk 0:00:09]}  Kf3 {[%clk 0:00:07]} 92. Be3 {[%clk 0:00:09]}  Bd3 {[%clk 0:00:08]} 93. Kh2 {[%clk 0:00:10]}  Ke2 {[%clk 0:00:09]} 94. Kg1 {[%clk 0:00:10]}  Bc4 {[%clk 0:00:10]} 95. Kh2 {[%clk 0:00:11]}  Kf1 {[%clk 0:00:10]} 96. Kh1 {[%clk 0:00:11]}  Bd3 {[%clk 0:00:11]} 97. Kh2 {[%clk 0:00:12]}  Bc4 {[%clk 0:00:11]} 98. Kh1 {[%clk 0:00:13]}  Be2 {[%clk 0:00:12]} 99. Kh2 {[%clk 0:00:13]}  Bf3 {[%clk 0:00:13]} 100. Bg5 {[%clk 0:00:06]}  Kxf2 {[%clk 0:00:14]} 101. Bf4 {[%clk 0:00:06]}  e3 {[%clk 0:00:14]} 0-1


[Site "https://www.chess.com"]

[Event "Titled Tuesday Blitz June 14 Late 2022"]
[White "Sjugirov, Sanan"]
[Black "Martin Carmona, Gaston Manuel"]
[WhiteFideId "4189302"]
[BlackFideId "22284567"]
[WhiteElo "2602"]
[BlackElo "2162"]
[Result "1-0"]
[Round "04"]
[TimeControl "180+1"]
[Date "2022.06.14"]
[WhiteClock "0:01:31"]
[BlackClock "0:00:22"]

1. e4 {[%clk 0:03:00]}  c5 {[%clk 0:02:57]} 2. Nf3 {[%clk 0:03:01]}  d6 {[%clk 0:02:57]} 3. d4 {[%clk 0:03:01]}  cxd4 {[%clk 0:02:58]} 4. Nxd4 {[%clk 0:03:02]}  Nf6 {[%clk 0:02:58]} 5. Nc3 {[%clk 0:03:02]}  g6 {[%clk 0:02:59]} 6. Be3 {[%clk 0:03:03]}  Bg7 {[%clk 0:03:00]} 7. f3 {[%clk 0:03:04]}  Nc6 {[%clk 0:03:01]} 8. Qd2 {[%clk 0:03:04]}  O-O {[%clk 0:03:01]} 9. O-O-O {[%clk 0:03:05]}  d5 {[%clk 0:03:01]} 10. Nxc6 {[%clk 0:03:01]}  bxc6 {[%clk 0:03:01]} 11. Bh6 {[%clk 0:03:01]}  Bxh6 {[%clk 0:02:36]} 12. Qxh6 {[%clk 0:03:01]}  e5 {[%clk 0:02:37]} 13. h4 {[%clk 0:02:59]}  d4 {[%clk 0:02:35]} 14. h5 {[%clk 0:02:56]}  Be6 {[%clk 0:02:35]} 15. hxg6 {[%clk 0:02:50]}  fxg6 {[%clk 0:02:35]} 16. Na4 {[%clk 0:02:40]}  Rb8 {[%clk 0:02:33]} 17. b3 {[%clk 0:02:39]}  Qe7 {[%clk 0:02:33]} 18. Kb1 {[%clk 0:02:34]}  a5 {[%clk 0:02:15]} 19. Qg5 {[%clk 0:02:23]}  Qd6 {[%clk 0:02:06]} 20. Nb2 {[%clk 0:02:17]}  a4 {[%clk 0:01:49]} 21. Nc4 {[%clk 0:02:10]}  Bxc4 {[%clk 0:01:49]} 22. Bxc4+ {[%clk 0:02:10]}  Kg7 {[%clk 0:01:34]} 23. Qh6+ {[%clk 0:02:10]}  Kh8 {[%clk 0:01:35]} 24. Qxg6 {[%clk 0:02:10]}  Rb7 {[%clk 0:01:31]} 25. Rh6 {[%clk 0:01:59]}  a3 {[%clk 0:01:03]} 26. Rdh1 {[%clk 0:01:56]}  Qb4 {[%clk 0:01:00]} 27. Bg8 {[%clk 0:01:33]}  Rxg8 {[%clk 0:00:23]} 28. Qxf6+ {[%clk 0:01:31]}  Rgg7 {[%clk 0:00:22]} 29. Rxh7+ {[%clk 0:01:31]} 1-0


[Site "https://www.chess.com"]

[Event "Titled Tuesday Blitz June 14 Late 2022"]
[White "Sowa, Ryan"]
[Black "Ibarra Jerez, Jose Carlos"]
[WhiteFideId "30901693"]
[BlackFideId "2226332"]
[WhiteElo "2565"]
[BlackElo "2628"]
[Result "0-1"]
[Round "04"]
[TimeControl "180+1"]
[Date "2022.06.14"]
[WhiteClock "0:01:24"]
[BlackClock "0:00:33"]

1. Nf3 {[%clk 0:03:00]}  c5 {[%clk 0:02:59]} 2. c4 {[%clk 0:03:01]}  Nc6 {[%clk 0:02:58]} 3. d4 {[%clk 0:03:02]}  cxd4 {[%clk 0:02:57]} 4. Nxd4 {[%clk 0:03:02]}  Nf6 {[%clk 0:02:56]} 5. Nc3 {[%clk 0:03:03]}  e6 {[%clk 0:02:57]} 6. a3 {[%clk 0:03:03]}  Bc5 {[%clk 0:02:56]} 7. Nb3 {[%clk 0:03:03]}  Bb6 {[%clk 0:02:56]} 8. e4 {[%clk 0:03:04]}  d6 {[%clk 0:02:52]} 9. Be2 {[%clk 0:03:03]}  O-O {[%clk 0:02:45]} 10. O-O {[%clk 0:03:04]}  a6 {[%clk 0:02:40]} 11. Qd3 {[%clk 0:03:03]}  Ne5 {[%clk 0:02:35]} 12. Qg3 {[%clk 0:03:02]}  Kh8 {[%clk 0:02:24]} 13. c5 {[%clk 0:02:55]}  Ba7 {[%clk 0:01:51]} 14. cxd6 {[%clk 0:02:54]}  Ng6 {[%clk 0:01:45]} 15. e5 {[%clk 0:02:39]}  Nd7 {[%clk 0:01:44]} 16. Bf4 {[%clk 0:02:39]}  Nxf4 {[%clk 0:01:30]} 17. Qxf4 {[%clk 0:02:40]}  f6 {[%clk 0:01:28]} 18. exf6 {[%clk 0:02:37]}  Nxf6 {[%clk 0:01:25]} 19. Rad1 {[%clk 0:02:23]}  Nd5 {[%clk 0:01:23]} 20. Qc4 {[%clk 0:02:19]}  Qxd6 {[%clk 0:01:18]} 21. Nxd5 {[%clk 0:02:15]}  exd5 {[%clk 0:01:19]} 22. Qxd5 {[%clk 0:02:09]}  Qxd5 {[%clk 0:01:11]} 23. Rxd5 {[%clk 0:02:10]}  Be6 {[%clk 0:01:11]} 24. Rd3 {[%clk 0:02:10]}  Bc4 {[%clk 0:01:11]} 25. Nc1 {[%clk 0:02:05]}  Bxd3 {[%clk 0:01:10]} 26. Nxd3 {[%clk 0:02:06]}  Rac8 {[%clk 0:01:08]} 27. Bf3 {[%clk 0:02:06]}  Rcd8 {[%clk 0:00:58]} 28. Nb4 {[%clk 0:02:04]}  Rd2 {[%clk 0:00:51]} 29. b3 {[%clk 0:01:59]}  a5 {[%clk 0:00:48]} 30. Nd5 {[%clk 0:01:55]}  Rd8 {[%clk 0:00:48]} 31. Nf4 {[%clk 0:01:46]}  Rb2 {[%clk 0:00:47]} 32. a4 {[%clk 0:01:28]}  g6 {[%clk 0:00:37]} 33. Bxb7 {[%clk 0:01:24]}  Rxf2 {[%clk 0:00:33]} 0-1


[Site "https://www.chess.com"]

[Event "Titled Tuesday Blitz June 14 Late 2022"]
[White "Svane, Rasmus"]
[Black "Shirov, Alexei"]
[WhiteFideId "4657101"]
[BlackFideId "2209390"]
[WhiteElo "2674"]
[BlackElo "2678"]
[Result "1-0"]
[Round "04"]
[TimeControl "180+1"]
[Date "2022.06.14"]
[WhiteClock "0:00:48"]
[BlackClock "0:01:08"]

1. Nf3 {[%clk 0:03:00]}  d5 {[%clk 0:02:59]} 2. g3 {[%clk 0:03:01]}  g6 {[%clk 0:02:59]} 3. Bg2 {[%clk 0:03:01]}  Bg7 {[%clk 0:02:59]} 4. d4 {[%clk 0:03:02]}  Nf6 {[%clk 0:02:59]} 5. O-O {[%clk 0:03:02]}  O-O {[%clk 0:02:58]} 6. c3 {[%clk 0:03:03]}  Nbd7 {[%clk 0:02:53]} 7. a4 {[%clk 0:03:02]}  c5 {[%clk 0:02:53]} 8. a5 {[%clk 0:03:02]}  Re8 {[%clk 0:02:49]} 9. Bf4 {[%clk 0:02:54]}  Nh5 {[%clk 0:02:48]} 10. Be3 {[%clk 0:02:54]}  cxd4 {[%clk 0:02:38]} 11. cxd4 {[%clk 0:02:55]}  Ndf6 {[%clk 0:02:35]} 12. Nc3 {[%clk 0:02:52]}  Ne4 {[%clk 0:02:15]} 13. Qb3 {[%clk 0:02:52]}  Nhf6 {[%clk 0:02:09]} 14. Rfc1 {[%clk 0:02:51]}  Ng4 {[%clk 0:02:01]} 15. Nxe4 {[%clk 0:02:43]}  Nxe3 {[%clk 0:01:57]} 16. Qxe3 {[%clk 0:02:38]}  dxe4 {[%clk 0:01:56]} 17. Qxe4 {[%clk 0:02:39]}  Rb8 {[%clk 0:01:52]} 18. Qf4 {[%clk 0:02:28]}  Be6 {[%clk 0:01:51]} 19. e3 {[%clk 0:02:03]}  h6 {[%clk 0:01:48]} 20. Ne5 {[%clk 0:01:59]}  Qd6 {[%clk 0:01:45]} 21. Rc5 {[%clk 0:01:46]}  Rec8 {[%clk 0:01:38]} 22. Rac1 {[%clk 0:01:42]}  b6 {[%clk 0:01:34]} 23. Rxc8+ {[%clk 0:01:41]}  Rxc8 {[%clk 0:01:34]} 24. Rxc8+ {[%clk 0:01:41]}  Bxc8 {[%clk 0:01:32]} 25. Qxf7+ {[%clk 0:01:38]}  Kh7 {[%clk 0:01:32]} 26. Be4 {[%clk 0:01:33]}  Qf6 {[%clk 0:01:21]} 27. Bxg6+ {[%clk 0:01:28]}  Kh8 {[%clk 0:01:21]} 28. axb6 {[%clk 0:01:16]}  axb6 {[%clk 0:01:19]} 29. Qd5 {[%clk 0:01:07]}  Be6 {[%clk 0:01:15]} 30. Qd8+ {[%clk 0:01:05]}  Qf8 {[%clk 0:01:13]} 31. Qxb6 {[%clk 0:01:04]}  Bd5 {[%clk 0:01:12]} 32. Bc2 {[%clk 0:00:49]}  Bxe5 {[%clk 0:01:08]} 33. Qg6 {[%clk 0:00:48]} 1-0


[Site "https://www.chess.com"]